bitfinex/quotes_ETHUSD_20251015
["timestamp","ask_amount","ask_price","bid_price","bid_amount"]
[1760495261411,0.001,4150.7,4150.1,2.4095639]
[1760495261412,0.001,4150.7,4150.1,0.48433526]
[1760495261622,2.48,4150.6,4150.3,2.40941406]
[1760495261843,2.48,4150.6,4150.1,2.40957703]
[1760495261844,0.001,4150.7,4149.9,2.4096436]
[1760495262050,0.2308,4149.8,4148.4,2.41051312]
[1760495262254,3.1136,4149.7,4149.2,2.41010236]
[1760495262454,3.1136,4149.7,4148.6,2.41043871]
[1760495262626,3.1136,4149.7,4149.1,2.41016123]
[1760495262828,2.48,4149.6,4149.1,2.41016123]
[1760495263326,0.4383,4149.5,4148.7,0.47882387]
[1760495263533,0.4383,4149.5,4149.1,2.41015968]
[1760495263738,0.6336,4149.5,4149.4,2.40993824]
[1760495264243,2.48,4149.5,4149.4,2.40993824]
[1760495264444,2.48,4149.5,4149.3,2.41003144]
[1760495264644,2.48,4149.5,4149.4,2.40998698]
[1760495265245,4.652,4149.5,4149.3,2.41003677]
[1760495265445,4.652,4149.5,4149.4,2.40998698]
[1760495266148,4.652,4149.5,4149.4,2.52998698]
[1760495267376,0.6336,4149.8,4149.4,0.12]
[1760495267559,0.6336,4150.5,4149.8,2.40974177]
[1760495267743,0.6336,4150.5,4149.2,0.192]
[1760495267744,2.479,4150.4,4149.9,0.02409696]
[1760495268063,2.479,4150.4,4149.2,2.60208257]
[1760495268064,0.1825,4150.8,4150.4,2.52935625]
[1760495268360,2.479,4150.6,4150.4,0.12]
[1760495268570,2.9173,4150.6,4150.4,0.12]
[1760495268934,2.9173,4150.6,4150.4,2.52940066]
[1760495269257,2.479,4150.6,4150.4,2.52940066]
[1760495269931,2.479,4150.6,4150.4,0.12]
[1760495270134,2.479,4150.6,4150.4,2.52938833]
[1760495270757,2.479,4150.6,4150.4,0.12]
[1760495271257,2.9173,4150.6,4150.4,0.12]
[1760495271460,2.479,4150.6,4150.4,2.52940284]
[1760495271657,2.479,4150.6,4150.4,0.12]
[1760495271877,0.6346,4151.2,4150.5,0.4578]
[1760495271878,0.001,4151.2,4150.5,0.4578]
[1760495272163,2.479,4150.6,4150.5,2.86714827]
[1760495274266,2.479,4150.6,4150.5,2.40934827]
[1760495275046,2.479,4150.6,4150.5,2.87204827]
[1760495275351,4.651,4150.6,4150.5,3.40019007]
[1760495275678,4.651,4150.6,4150.5,2.93749007]
[1760495276155,3.565,4150.6,4150.5,2.93749007]
[1760495276739,3.565,4150.6,4149.7,0.4627]
[1760495276740,2.479,4150.6,4149.7,0.4627]
[1760495276965,2.479,4150.6,4149.9,2.40969661]
[1760495277167,2.479,4150.6,4150.4,2.40936388]
[1760495277343,2.9175,4150.6,4150.4,2.40936388]
[1760495277871,2.478,4150.5,4150.4,2.40936388]
[1760495278179,2.478,4150.5,4148.8,2.41030684]
[1760495278180,0.6336,4150.4,4148.8,2.41030684]
[1760495278363,0.4376,4150.3,4149.4,2.40997533]
[1760495278544,0.6336,4150.2,4148.6,4.33045171]
[1760495278746,0.001,4150.7,4148.8,2.41033551]
[1760495279053,0.001,4150.7,4148.9,0.4627]
[1760495279054,0.6336,4150.5,4148.9,0.4627]
[1760495279254,0.6336,4150.5,4149.1,1.92]
[1760495279450,0.6336,4150.5,4150.0,2.4095909]
[1760495279642,1.0712,4150.5,4150.1,2.40956394]
[1760495280345,0.4376,4150.4,4150.1,2.40956394]
[1760495280569,0.4376,4150.4,4150.0,2.40959413]
[1760495280875,0.4376,4150.4,4150.1,2.4095795]
[1760495281793,0.4376,4150.4,4150.3,0.12]
[1760495282091,0.001,4150.7,4150.4,2.40940632]
[1760495282296,0.001,4150.7,4150.6,2.52929022]
[1760495282495,1.911,4150.7,4150.6,2.52929022]
[1760495282693,0.001,4150.7,4150.6,2.99199022]
[1760495282861,2.479,4150.7,4150.6,3.01608312]
[1760495283187,2.479,4150.7,4150.6,3.55983541]
[1760495283393,0.001,4150.7,4150.6,3.55983541]
[1760495283560,2.479,4150.7,4150.6,3.09713541]
[1760495283760,0.001,4150.7,4150.6,3.55983541]
[1760495283994,0.816,4150.7,4150.6,3.55983541]
[1760495284395,1.839,4150.7,4150.6,3.55983541]
[1760495284796,0.001,4150.7,4150.6,3.55983541]
[1760495285317,1.805,4150.7,4150.6,3.55983541]
[1760495285865,3.564,4150.7,4150.6,3.55983541]
[1760495286570,0.001,4151.1,4151.0,2.40905805]
[1760495286794,3.564,4151.1,4151.0,3.01087762]
[1760495286982,0.001,4151.1,4151.0,3.47357762]
[1760495287300,0.001,4151.5,4151.4,2.40882593]
[1760495287500,1.499,4151.5,4151.4,0.12]
[1760495287790,0.001,4151.5,4151.4,2.52882593]
[1760495287990,0.909,4151.5,4151.4,3.52997638]
[1760495288190,0.001,4151.5,4151.4,3.52997638]
[1760495288367,1.947,4151.5,4151.4,3.04318813]
[1760495289099,1.947,4151.5,4151.4,0.6343622]
[1760495289308,2.4084,4151.5,4151.4,0.12]
[1760495289466,3.042,4151.5,4151.4,0.12]
[1760495290492,0.001,4151.5,4151.4,2.52882593]
[1760495290701,2.478,4151.5,4151.4,2.55291418]
[1760495290998,2.478,4151.5,4151.4,2.52882593]
[1760495291299,2.9168,4151.5,4151.4,0.12]
[1760495291482,2.478,4151.5,4151.4,0.12]
[1760495291682,2.478,4151.5,4151.4,2.52882593]
[1760495291902,2.478,4151.5,4151.4,0.12]
[1760495291903,2.9168,4151.5,4151.4,0.12]
[1760495295107,2.478,4151.5,4151.4,0.12]
[1760495295301,4.648,4151.5,4151.4,0.12]
[1760495296012,5.0868,4151.5,4151.4,0.12]
[1760495296216,4.53224,4151.5,4151.4,0.12]
[1760495296795,4.0018,4151.5,4151.4,0.12]
[1760495298317,0.001,4151.5,4151.3,2.40883624]
[1760495298509,0.001,4151.5,4151.4,0.12]
[1760495299021,2.478,4151.5,4151.4,2.52882593]
[1760495299525,0.001,4151.5,4151.4,3.0226012]
[1760495299693,2.9168,4151.5,4151.4,0.12]
[1760495301405,0.6336,4151.4,4150.0,0.2145]
[1760495301625,0.6336,4151.2,4150.0,2.6241351]
[1760495301922,2.9148,4151.1,4150.2,2.4094695]
[1760495302225,2.9148,4151.1,4150.0,2.4096351]
[1760495302406,0.4388,4151.0,4150.0,2.4096351]
[1760495302603,0.2166,4150.9,4149.7,0.2145]
[1760495302807,0.4388,4150.8,4149.7,0.2145]
[1760495303025,2.476,4150.7,4149.7,0.2145]
[1760495303230,0.2166,4150.9,4149.7,0.2145]
[1760495303397,2.476,4150.6,4150.5,2.40931288]
[1760495303797,2.476,4150.6,4150.4,2.40939918]
[1760495303998,0.2166,4150.8,4150.5,2.40934827]
[1760495304225,0.6336,4150.6,4150.1,0.002]
[1760495304520,2.80862,4150.5,4150.1,0.002]
[1760495304722,2.9148,4150.5,4150.1,0.002]
[1760495304921,0.4388,4150.5,4150.1,0.002]
[1760495305128,2.9148,4150.4,4150.1,0.002]
[1760495305426,2.17,4150.3,4150.1,0.002]
[1760495305638,0.6336,4150.2,4150.1,0.002]
[1760495305846,1.0724,4150.2,4150.1,0.002]
[1760495306946,1.64424,4150.2,4150.1,0.002]
[1760495307240,5.97376243,4150.2,4150.1,0.002]
[1760495310834,6.49175524,4150.2,4150.1,0.002]
[1760495311246,5.97376243,4150.2,4150.1,0.002]
[1760495311623,8.45076243,4150.2,4150.1,0.002]
[1760495312364,5.97376243,4150.2,4150.1,0.002]
[1760495312580,8.45076243,4150.2,4150.1,0.002]
[1760495312931,5.97376243,4150.2,4150.1,0.002]
[1760495313152,4.397,4150.2,4150.1,0.002]
[1760495313430,4.517,4150.2,4150.1,0.002]
[1760495313866,6.92652243,4150.2,4150.1,0.002]
[1760495314070,2.4788,4150.2,4150.1,0.002]
[1760495314230,0.7536,4150.2,4150.1,0.002]
[1760495314429,2.477,4150.2,4150.1,0.002]
[1760495314630,4.8358,4150.2,4150.1,0.002]
[1760495315156,6.2059274,4150.2,4150.1,0.002]
[1760495315336,4.8149274,4150.2,4150.1,0.002]
[1760495315536,2.5536,4150.2,4150.1,0.002]
[1760495315741,5.0306,4150.2,4150.1,0.002]
[1760495316045,2.5536,4150.2,4150.1,0.002]
[1760495316245,1.92,4150.2,4150.1,0.002]
[1760495316444,4.397,4150.2,4150.1,0.002]
[1760495317051,2.5536,4150.2,4150.1,0.002]
[1760495317226,5.4694,4150.2,4150.1,0.002]
[1760495319070,5.0306,4150.2,4150.1,0.002]
[1760495320355,2.5536,4150.2,4150.1,0.2001]
[1760495320770,5.0296,4150.2,4150.1,0.2001]
[1760495321358,2.5536,4150.2,4150.1,0.2001]
[1760495321569,5.0296,4150.2,4150.1,2.60968049]
[1760495322088,3.1096,4150.2,4150.1,3.6451334]
[1760495322256,0.12,4151.3,4150.1,1.35555291]
[1760495322455,4.396,4151.2,4150.4,2.40936095]
[1760495322688,1.92,4151.2,4150.6,0.12]
[1760495322914,2.476,4151.1,4150.6,0.12]
[1760495323393,0.6336,4151.0,4150.6,0.12]
[1760495323578,2.5536,4150.8,4150.6,0.12]
[1760495323887,5.0296,4150.7,4150.6,0.12]
[1760495324402,0.6336,4150.6,4150.4,0.12]
[1760495324686,3.1096,4150.5,4150.4,0.74706356]
[1760495324902,0.6336,4150.4,4150.1,0.2001]
[1760495325113,2.476,4150.3,4150.1,0.2001]
[1760495325270,4.648,4150.2,4150.1,0.002]
[1760495325473,3.562,4150.2,4150.1,2.41158049]
[1760495325794,3.1096,4150.2,4150.1,0.122]
[1760495326001,3.1096,4150.2,4150.1,2.53158049]
[1760495326706,3.1096,4150.2,4150.1,0.122]
[1760495326913,3.5415,4150.2,4150.1,0.122]
[1760495327225,5.4615,4150.2,4150.1,0.002]
[1760495327506,6.26058586,4150.2,4150.1,0.002]
[1760495329199,7.87102243,4150.2,4150.1,0.002]
[1760495330723,8.39034333,4150.2,4150.1,0.002]
[1760495331581,6.01100383,4150.2,4150.1,0.002]
[1760495331878,8.39034333,4150.2,4150.1,0.002]
[1760495332083,4.396,4150.2,4150.1,0.002]
[1760495332627,2.476,4150.2,4150.1,0.3201]
[1760495332922,2.476,4150.2,4150.1,0.5930805]
[1760495333121,2.476,4150.2,4150.1,0.3201]
[1760495334220,3.1096,4150.2,4150.1,0.3201]
[1760495335123,5.0296,4150.2,4150.1,0.3201]
[1760495335320,7.2016,4150.2,4150.1,0.3201]
[1760495335521,3.6396,4150.2,4150.1,0.3201]
[1760495335723,7.2016,4150.2,4150.1,0.122]
[1760495337529,5.0296,4150.2,4150.1,0.122]
[1760495337738,7.43912243,4150.2,4150.1,0.122]
[1760495337911,7.43912243,4150.2,4150.1,0.002]
[1760495337912,7.90582243,4150.2,4150.1,0.002]
[1760495338300,8.93734805,4150.2,4150.1,0.002]
[1760495338695,9.45715388,4150.2,4150.1,0.002]
[1760495339401,6.98115388,4150.2,4150.1,0.002]
[1760495339596,5.48292826,4150.2,4150.1,0.002]
[1760495339800,7.95892826,4150.2,4150.1,0.002]
[1760495340216,8.42562826,4150.2,4150.1,0.002]
[1760495341528,5.94962826,4150.2,4150.1,0.002]
[1760495341725,8.42562826,4150.2,4150.1,0.002]
[1760495341900,9.50913446,4150.2,4150.1,0.002]
[1760495342330,7.03313446,4150.2,4150.1,0.002]
[1760495342543,9.60579425,4150.2,4150.1,0.002]
[1760495343133,9.50913446,4150.2,4150.1,0.002]
[1760495343330,7.32532826,4150.2,4150.1,0.002]
[1760495343634,7.79202826,4150.2,4150.1,0.002]
[1760495344026,8.42562826,4150.2,4150.1,0.002]
[1760495344933,7.95892826,4150.2,4150.1,0.002]
[1760495345099,5.48292826,4150.2,4150.1,0.002]
[1760495345302,10.13092826,4150.2,4150.1,0.002]
[1760495345517,11.38496446,4150.2,4150.1,0.002]
[1760495345724,10.13092826,4150.2,4150.1,0.002]
[1760495347900,8.42562826,4150.2,4150.1,0.002]
[1760495351206,4.84932826,4150.2,4150.1,0.002]
[1760495352025,0.37788253,4150.3,4150.1,0.645]
[1760495352335,0.12,4150.6,4150.1,0.645]
[1760495352336,2.475,4150.2,4150.1,0.2001]
[1760495352837,2.475,4150.2,4150.1,0.645]
[1760495353044,5.0286,4150.2,4150.1,0.645]
[1760495353736,2.475,4150.2,4150.1,3.17458049]
[1760495353911,2.475,4150.2,4150.1,3.73301026]
[1760495354114,0.12,4150.6,4150.1,1.32342977]
[1760495354309,2.475,4150.5,4150.3,0.12]
[1760495354512,2.475,4150.4,4150.3,0.12]
[1760495354935,5.0286,4150.4,4150.3,0.12]
[1760495355140,5.0286,4150.4,4150.3,0.5649]
[1760495355336,7.2006,4150.4,4150.3,0.5649]
[1760495355548,0.12,4151.0,4150.3,3.29182187]
[1760495355839,2.475,4150.9,4150.5,2.52934827]
[1760495356007,0.121,4151.2,4150.6,0.4449]
[1760495356211,0.001,4151.2,4151.1,0.192]
[1760495356411,2.476,4151.2,4151.1,0.192]
[1760495356605,2.476,4151.2,4151.1,0.6369]
[1760495356816,2.476,4151.2,4151.1,0.192]
[1760495357015,0.6336,4151.1,4150.9,0.12]
[1760495357330,0.6336,4151.1,4150.9,0.88151084]
[1760495357530,3.1086,4151.0,4150.9,0.88151084]
[1760495357731,3.1086,4151.0,4150.9,3.29062693]
[1760495357913,3.1086,4151.0,4150.9,0.88151084]
[1760495358110,3.1086,4151.0,4150.9,0.5649]
[1760495358327,3.1086,4151.0,4150.9,0.12]
[1760495358742,3.1086,4151.0,4150.9,0.5649]
[1760495359251,0.6336,4151.0,4150.9,2.97401609]
[1760495359553,3.1086,4151.0,4150.9,2.97401609]
[1760495359753,0.001,4151.2,4151.1,2.40900002]
[1760495359917,2.476,4151.2,4151.1,2.40900002]
[1760495360125,0.001,4151.2,4151.1,2.85390002]
[1760495360316,3.1096,4151.2,4151.1,2.85390002]
[1760495361621,0.6346,4151.2,4151.1,2.40900002]
[1760495361947,3.1096,4151.2,4151.1,3.41066346]
[1760495363360,3.1096,4151.2,4151.1,2.96576346]
[1760495363654,3.1096,4151.2,4151.1,3.41066346]
[1760495363861,0.001,4151.2,4151.1,0.55676344]
[1760495364027,0.001,4151.2,4151.1,0.4449]
[1760495364364,2.475,4151.2,4151.1,2.85390002]
[1760495365244,4.645,4151.2,4151.1,2.85390002]
[1760495366550,2.475,4151.2,4151.1,2.85390002]
[1760495366854,2.475,4151.2,4151.1,3.39940163]
[1760495367552,0.001,4151.2,4151.1,3.39940163]
[1760495367752,0.001,4151.2,4151.1,3.42349163]
[1760495368053,0.001,4151.5,4151.4,2.40882593]
[1760495368234,0.001,4151.5,4151.4,2.43291418]
[1760495368440,0.001,4151.5,4151.4,3.70193636]
[1760495369222,0.001,4151.5,4151.4,3.67784811]
[1760495369223,0.046,4151.5,4151.4,3.67784811]
[1760495369823,0.046,4151.5,4151.4,3.79784811]
[1760495370664,0.767,4151.5,4151.4,3.82193636]
[1760495371426,0.767,4151.5,4151.4,3.79784811]
[1760495371750,1.278,4151.5,4151.4,3.79784811]
[1760495372157,0.001,4151.5,4151.4,3.79784811]
[1760495372456,2.46,4151.5,4151.4,3.79784811]
[1760495374050,0.001,4151.5,4151.4,3.79784811]
[1760495374253,2.474,4151.5,4151.4,3.79784811]
[1760495374956,2.474,4151.5,4151.4,3.35294811]
[1760495375324,4.644,4151.5,4151.4,3.35294811]
[1760495375747,4.644,4151.5,4151.4,2.52882593]
[1760495376055,2.9222,4151.5,4151.4,2.40882593]
[1760495376449,2.9222,4151.5,4151.3,2.40885907]
[1760495376645,0.4482,4151.4,4151.2,2.40892526]
[1760495376847,0.4482,4151.4,4151.1,2.41098885]
[1760495377046,0.4482,4151.3,4151.1,2.41098885]
[1760495377251,0.6336,4151.2,4151.1,0.002]
[1760495377425,1.43738,4151.2,4151.1,0.002]
[1760495377629,0.6336,4151.4,4151.1,0.002]
[1760495377829,1.0818,4151.4,4151.1,0.002]
[1760495378129,0.6336,4151.2,4151.1,0.002]
[1760495378546,0.4482,4151.2,4151.1,0.002]
[1760495379625,3.49074199,4151.2,4151.1,0.002]
[1760495379874,6.07057619,4151.2,4151.1,0.002]
[1760495381464,3.6616342,4151.2,4151.1,0.002]
[1760495381665,2.5536,4151.2,4151.1,0.002]
[1760495381853,5.4902,4151.2,4151.1,0.002]
[1760495382986,5.0266,4151.2,4151.1,0.002]
[1760495384062,1.92,4151.2,4151.1,0.002]
[1760495384365,4.393,4151.2,4151.1,0.002]
[1760495384940,2.473,4151.2,4151.1,2.41100002]
[1760495385368,5.2766,4151.2,4151.1,2.41100002]
[1760495385663,5.2766,4151.2,4151.1,0.002]
[1760495385866,5.2766,4151.2,4151.1,0.122]
[1760495386038,0.001,4151.5,4151.1,0.122]
[1760495386238,2.473,4151.2,4151.1,0.122]
[1760495386433,0.001,4151.5,4151.4,2.52882593]
[1760495386639,2.473,4151.5,4151.4,2.40882593]
[1760495386843,2.473,4151.5,4151.4,2.52882593]
[1760495387742,2.473,4151.5,4151.4,0.12]
[1760495388172,2.473,4151.5,4151.4,2.52882593]
[1760495388857,0.6336,4151.4,4151.1,0.002]
[1760495389072,1.0972,4151.4,4151.1,0.002]
[1760495389271,0.6336,4151.2,4151.1,0.002]
[1760495389642,3.0172,4151.2,4151.1,0.002]
[1760495389844,6.21604038,4151.2,4151.1,0.002]
[1760495392056,3.80709839,4151.2,4151.1,0.002]
[1760495392352,6.27909839,4151.2,4151.1,0.002]
[1760495392882,8.68804038,4151.2,4151.1,0.002]
[1760495393083,5.4892,4151.2,4151.1,0.002]
[1760495394286,3.0172,4151.2,4151.1,0.002]
[1760495394485,5.4892,4151.2,4151.1,0.002]
[1760495394664,7.43454199,4151.2,4151.1,0.002]
[1760495394992,7.88544199,4151.2,4151.1,0.002]
[1760495395362,11.08496916,4151.2,4151.1,0.002]
[1760495396972,10.05544199,4151.2,4151.1,0.002]
[1760495398562,8.97044199,4151.2,4151.1,0.002]
[1760495398792,7.88544199,4151.2,4151.1,0.002]
[1760495400476,8.40412907,4151.2,4151.1,0.002]
[1760495401109,5.93212907,4151.2,4151.1,0.002]
[1760495401279,8.50096045,4151.2,4151.1,0.002]
[1760495401600,7.88544199,4151.2,4151.1,0.002]
[1760495401805,8.9149699,4151.2,4151.1,0.002]
[1760495402016,9.4337137,4151.2,4151.1,0.002]
[1760495404305,6.9617137,4151.2,4151.1,0.002]
[1760495404604,9.4337137,4151.2,4151.1,0.002]
[1760495405409,10.5197137,4151.2,4151.1,0.002]
[1760495405611,9.4337137,4151.2,4151.1,0.002]
[1760495406412,6.9617137,4151.2,4151.1,0.002]
[1760495406618,6.3281137,4151.2,4151.1,0.002]
[1760495406817,0.5187438,4151.2,4151.1,0.2001]
[1760495407030,2.472,4151.2,4151.1,0.002]
[1760495407308,4.392,4151.2,4151.1,0.002]
[1760495407480,1.92,4151.2,4151.1,0.002]
[1760495407680,4.392,4151.2,4151.1,0.002]
[1760495408091,6.80094199,4151.2,4151.1,0.002]
[1760495408308,7.43454199,4151.2,4151.1,0.002]
[1760495408813,7.88544199,4151.2,4151.1,0.002]
[1760495409015,2.5536,4151.2,4151.1,0.4472]
[1760495409219,1.92,4151.2,4151.1,0.4472]
[1760495409524,0.001,4151.5,4151.1,0.4472]
[1760495409706,2.416,4151.4,4151.2,0.4452]
[1760495409906,0.6336,4151.3,4151.1,0.002]
[1760495410227,0.001,4151.5,4151.3,0.4346]
[1760495410377,0.001,4151.5,4151.2,0.24111061]
[1760495410378,0.001,4151.5,4151.4,0.4346]
[1760495410578,2.473,4151.5,4151.4,0.4346]
[1760495410780,0.001,4151.5,4151.4,2.96342593]
[1760495411001,2.473,4151.5,4151.4,2.96342593]
[1760495411312,2.452,4151.5,4151.4,3.50086099]
[1760495411678,0.001,4151.5,4151.4,3.50086099]
[1760495412323,1.929,4151.5,4151.4,3.50086099]
[1760495413214,0.001,4151.5,4151.4,3.50086099]
[1760495413411,2.052,4151.5,4151.4,3.50086099]
[1760495413976,2.472,4151.5,4151.4,3.50086099]
[1760495415412,4.642,4151.5,4151.4,3.50086099]
[1760495416683,1.086,4151.5,4151.4,3.50086099]
[1760495416901,4.642,4151.5,4151.4,3.50086099]
[1760495419140,4.642,4151.5,4151.4,3.06626099]
[1760495419304,0.001,4151.5,4151.4,3.50086099]
[1760495419499,2.472,4151.5,4151.4,3.50086099]
[1760495419923,0.001,4151.5,4151.4,3.50086099]
[1760495420100,0.055,4151.5,4151.4,3.50086099]
[1760495420302,0.001,4151.5,4151.4,3.50086099]
[1760495420602,0.061,4151.5,4151.4,3.50086099]
[1760495422428,0.645,4151.5,4151.4,3.52494924]
[1760495422634,0.645,4151.5,4151.4,3.50086099]
[1760495423008,0.001,4151.5,4151.4,3.52494924]
[1760495423204,0.001,4151.6,4151.5,4.32876791]
[1760495423534,0.001,4151.6,4151.5,5.78963209]
[1760495423732,0.001,4151.6,4151.5,5.88618386]
[1760495424112,0.001,4151.7,4151.6,4.32870989]
[1760495424339,0.003,4152.9,4151.7,1.92]
[1760495424524,0.003,4152.9,4152.8,2.60001387]
[1760495424726,1.192,4152.9,4152.8,3.2208246]
[1760495424922,0.003,4152.9,4152.8,16.98784894]
[1760495425108,0.833,4152.9,4152.8,16.98784894]
[1760495425315,2.706,4152.9,4152.8,18.78784894]
[1760495426216,0.003,4152.9,4152.8,3.1008246]
[1760495426538,2.473,4152.9,4152.8,3.5354246]
[1760495427060,2.473,4152.9,4152.8,3.1008246]
[1760495427218,2.473,4152.9,4152.8,0.69281073]
[1760495427417,2.473,4152.9,4152.8,2.60001387]
[1760495427661,2.473,4152.9,4152.8,0.192]
[1760495427825,2.473,4152.9,4151.7,0.4346]
[1760495428143,2.473,4152.9,4151.7,2.84324742]
[1760495428144,2.704,4152.9,4151.7,2.84324742]
[1760495428348,2.40802153,4152.8,4151.5,3.43501025]
[1760495428643,2.40808884,4152.7,4151.6,1.73048697]
[1760495428815,0.231,4151.7,4151.1,0.002]
[1760495429135,0.231,4151.7,4151.1,2.41098691]
[1760495429136,2.469,4151.6,4151.1,2.41098691]
[1760495429447,2.9023,4151.6,4151.1,0.002]
[1760495429742,0.4333,4151.5,4151.1,0.002]
[1760495429950,0.6336,4151.4,4151.1,0.002]
[1760495430112,0.6336,4151.2,4151.1,0.002]
[1760495430513,2.9869,4151.2,4151.1,0.002]
[1760495431015,5.4559,4151.2,4151.1,0.002]
[1760495431240,3.5359,4151.2,4151.1,0.002]
[1760495431438,1.0669,4151.2,4151.1,0.002]
[1760495431859,3.47584199,4151.2,4151.1,0.002]
[1760495432038,3.5359,4151.2,4151.1,0.002]
[1760495432360,1.0669,4151.2,4151.1,0.002]
[1760495432562,5.4559,4151.2,4151.1,0.002]
[1760495432860,2.3533,4151.2,4151.1,0.002]
[1760495433179,8.10017199,4151.2,4151.1,0.002]
[1760495433672,5.69123,4151.2,4151.1,0.002]
[1760495434034,8.10017199,4151.2,4151.1,0.002]
[1760495434227,1.92,4151.2,4151.1,0.002]
[1760495434445,2.469,4151.2,4151.1,0.002]
[1760495434969,7.23124199,4151.2,4151.1,0.002]
[1760495435265,3.04277413,4150.8,4150.7,0.002]
[1760495435640,3.47407413,4150.8,4150.7,0.002]
[1760495435853,6.20949054,4150.8,4150.7,0.002]
[1760495437142,4.96283217,4150.7,4150.6,1e-08]
[1760495437342,7.94966727,4150.7,4150.6,1e-08]
[1760495437549,3.04312243,4150.2,4150.1,1e-08]
[1760495437873,7.43312243,4150.2,4150.1,1e-08]
[1760495438163,8.84867828,4150.2,4150.1,1e-08]
[1760495438332,8.94533714,4150.2,4150.1,1e-08]
[1760495438733,9.4618702,4150.2,4150.1,1e-08]
[1760495439968,8.94533714,4150.2,4150.1,1e-08]
[1760495443673,2.40975468,4149.8,4148.1,0.1241]
[1760495443874,0.6336,4149.4,4147.6,0.002]
[1760495444079,7.43364506,4149.3,4147.6,0.002]
[1760495444279,3.04457475,4147.7,4147.6,0.002]
[1760495444479,5.0236,4147.7,4147.6,0.002]
[1760495444646,7.86907475,4147.7,4147.6,0.002]
[1760495444973,8.22731391,4147.7,4147.6,0.002]
[1760495445372,9.31331391,4147.7,4147.6,0.002]
[1760495445575,8.3502552,4147.7,4147.6,0.002]
[1760495445779,8.22731391,4147.7,4147.6,0.002]
[1760495446274,0.1981,4148.1,4147.6,0.002]
[1760495446474,2.47,4148.0,4147.6,0.002]
[1760495446674,2.47,4147.9,4147.6,0.002]
[1760495446900,0.6336,4147.8,4147.6,0.002]
[1760495447059,3.04457475,4147.7,4147.6,0.002]
[1760495447556,3.16457475,4147.7,4147.6,0.002]
[1760495447981,8.35348223,4147.7,4147.6,0.002]
[1760495448360,8.78798223,4147.7,4147.6,0.002]
[1760495448875,8.35348223,4147.7,4147.6,0.002]
[1760495449286,6.37700748,4147.7,4147.6,0.002]
[1760495449499,8.78798223,4147.7,4147.6,0.002]
[1760495449668,8.35348223,4147.7,4147.6,0.002]
[1760495449875,8.78898223,4147.7,4147.6,0.002]
[1760495450692,8.88570443,4147.7,4147.6,0.002]
[1760495451281,8.78898223,4147.7,4147.6,0.002]
[1760495452398,8.66898223,4147.7,4147.6,0.002]
[1760495453059,8.66898223,4147.7,4147.1,0.002]
[1760495453060,4.33103288,4147.6,4147.1,0.002]
[1760495453259,2.5536,4147.2,4147.1,0.002]
[1760495453594,7.43586543,4147.2,4147.1,0.002]
[1760495453793,7.81401518,4147.2,4147.1,0.002]
[1760495454469,8.25761518,4147.2,4147.1,0.002]
[1760495454672,9.24187103,4147.2,4147.1,0.002]
[1760495455086,6.77087103,4147.2,4147.1,0.002]
[1760495455384,11.41387103,4147.2,4147.1,0.002]
[1760495455693,7.41327103,4147.2,4147.1,0.002]
[1760495455899,9.98601518,4147.2,4147.1,0.002]
[1760495456106,7.81401518,4147.2,4147.1,0.002]
[1760495456391,5.34301518,4147.2,4147.1,0.002]
[1760495456563,7.81401518,4147.2,4147.1,0.002]
[1760495456765,0.37814975,4147.2,4147.1,0.002]
[1760495456963,4.76914975,4147.2,4147.1,0.002]
[1760495457283,7.81401518,4147.2,4147.1,0.002]
[1760495457466,7.43586543,4147.2,4147.1,0.002]
[1760495458393,2.5536,4147.2,4147.1,0.1261]
[1760495458782,7.43586543,4147.2,4147.1,0.1261]
[1760495458985,4.391,4147.2,4147.1,0.1261]
[1760495459397,5.0246,4147.2,4147.1,0.1261]
[1760495459597,2.5536,4147.2,4147.1,0.1261]
[1760495459902,5.0246,4147.2,4147.1,0.1261]
[1760495460402,0.37813169,4147.7,4147.2,2.41126543]
[1760495460705,2.471,4147.6,4147.3,0.77447654]
[1760495460999,6.80203532,4147.6,4147.1,0.1261]
[1760495461206,2.5536,4147.5,4147.1,0.1261]
[1760495461414,0.6336,4147.3,4147.1,0.002]
[1760495461701,3.1046,4147.2,4147.1,0.1261]
[1760495461903,3.1046,4147.2,4147.1,0.002]
[1760495461904,5.51586543,4147.2,4147.1,0.002]
[1760495462116,3.1046,4147.2,4147.1,0.002]
[1760495462323,0.7536,4147.2,4147.1,0.002]
[1760495462522,3.1046,4147.2,4147.1,0.4754]
[1760495462727,0.6336,4147.2,4147.1,2.88672357]
[1760495462933,1.115,4147.2,4147.1,0.90849943]
[1760495463222,0.51590972,4149.4,4147.2,2.41126543]
[1760495463392,0.51590972,4149.7,4149.3,0.1601]
[1760495463715,2.471,4149.6,4149.4,0.4734]
[1760495463886,0.51717334,4150.8,4149.5,2.40992711]
[1760495464082,2.78710874,4150.7,4149.5,2.40990587]
[1760495464379,0.30191087,4150.6,4149.3,0.1601]
[1760495464580,0.001,4150.8,4150.5,0.1241]
[1760495464786,0.82,4150.7,4150.5,0.1241]
[1760495464988,0.82,4150.7,4150.1,0.1241]